Cogmind - Beta 13 @@@ ROGUE MODE // 2024.04.12 @ 16:05:55 Player: MO-55 Result: Destroyed by S-27 Virus with Autogun Performance ------------- Evolutions (5) 2500 Regions Visited (14) 2800 Robots Destroyed (207) 1035 Value Destroyed (7432) 7432 Prototype IDs (23) 460 Alien Tech Used (0) 0 Bonus (778) 778 TOTAL SCORE: 15005 Bonus ------- High Alert Combat Kills 381 Follower Combat Kills 97 Met Data Miner 300 Cogmind --------- Core Integrity 0/1000 Matter 240/300 Energy 94/100 System Corruption 12% Temperature Cool (0) Movement Core (50) Location -5/Upper Caves Parts ------- > --- POWER (1) -------- (None) > --- PROPULSION (6) --- (None) > --- UTILITY (8) ------ Enhanced Optical Array Improved Signal Interpreter Advanced Melee Analysis Suite > --- WEAPON (2) ------- Makeshift Sword > --- INVENTORY (5) ---- Makeshift Transmission Jammer Hacking Drone Bay (1/1) Guided Missile Launcher Rocket Array Peak State ------------ > --- POWER ------------ Micro Fission Core > --- PROPULSION ------- Carbon-fiber Leg Flexi-carbon Leg Flexi-carbon Leg Flexi-carbon Leg Flexi-carbon Leg Armored Leg > --- UTILITY ---------- Huge Storage Unit Improved Trap Scanner Enhanced Optical Array Improved Melee Analysis Suite Advanced Melee Analysis Suite Light Regenerative Plating Advanced Shield Generator Hacking Drone Bay > --- WEAPON ----------- Makeshift Hammer Phasing Sabre > --- INVENTORY -------- Fission Core Neutrino Core Carbon-fiber Leg Carbon-fiber Leg Carbon-fiber Leg Flexi-carbon Leg Flexi-carbon Leg Improved Signal Interpreter Microactuators Hardened Heavy Armor Plating Layered Medium Armor Plating Enhanced Gauss Cannon Guided Missile Launcher Rocket Array Ripper Heavy Pick [Rating: 93] Favorites ----------- Power Improved Ion Engine Engine Improved Ion Engine Power Core Nuclear Core Reactor Light Antimatter Reactor Propulsion Wheel Treads Light Treads Leg Aluminum Leg Wheel Wheel Utility Huge Storage Unit Device Improved Terrain Scanner Storage Huge Storage Unit Processor Improved Melee Analysis Suite Protection Hardened Heavy Armor Plating Weapon Greatsword Energy Gun Medium Laser Energy Cannon Subdweller Beam Cannon Ballistic Gun Heavy Battle Rifle Ballistic Cannon Battle Cannon Launcher Rocket Array Impact Weapon Makeshift Hammer Slashing Weapon Greatsword Piercing Weapon Makeshift Spear Build | -11 -10 -10 -8 -7 -7 -7 -7 -6 -6 -6 -6 -5 -5 -5 ------- Run | Yrd Mat Sub Mat Fac Low Low Dat Pro Fac Low Zio Pro Fac Upp Slots Evolved 10 | . . . 4 2 . . . . 2 . . . 2 . Power . | . . . . . . . . . . . . . . . Propulsion 4 | . . . 2 . . . . . 1 . . . 1 . Utility 6 | . . . 2 2 . . . . 1 . . . 1 . Weapon . | . . . . . . . . . . . . . . . Parts Attached 284 | 7 9 21 43 29 6 7 . 6 62 11 5 19 57 2 Power 33 | 1 1 5 4 3 . 3 . 1 4 1 1 1 8 . Engine 22 | 1 1 5 3 1 . 3 . 1 3 1 1 1 1 . Core 10 | . . . 1 2 . . . . . . . . 7 . Reactor 1 | . . . . . . . . . 1 . . . . . Propulsion 78 | 2 2 3 16 5 2 . . 4 18 2 . 4 20 . Treads 6 | . . 3 1 . . . . . . . . 2 . . Leg 46 | 2 2 . 11 . . . . 4 7 1 . 2 17 . Wheel 26 | . . . 4 5 2 . . . 11 1 . . 3 . Hover . | . . . . . . . . . . . . . . . Flight . | . . . . . . . . . . . . . . . Utility 126 | 2 1 5 14 20 4 3 . 1 38 8 . 7 23 . Device 60 | 1 . 3 1 10 1 1 . . 21 4 . 6 12 . Storage 7 | 1 1 . 5 . . . . . . . . . . . Processor 8 | . . . 1 1 2 . . . . . . . 4 . Hackware . | . . . . . . . . . . . . . . . Protection 51 | . . 2 7 9 1 2 . 1 17 4 . 1 7 . Artifact . | . . . . . . . . . . . . . . . Weapon 47 | 2 5 8 9 1 . 1 . . 2 . 4 7 6 2 Energy Gun 3 | 1 1 . 1 . . . . . . . . . . . Energy Cannon 6 | . 1 3 2 . . . . . . . . . . . Ballistic Gun 6 | 1 2 2 1 . . . . . . . . . . . Ballistic Cannon 1 | . . 1 . . . . . . . . . . . . Launcher 6 | . 1 . . . . . . . . . 2 2 1 . Special Weapon . | . . . . . . . . . . . . . . . Impact Weapon 4 | . . 1 1 . . . . . . . . . 2 . Slashing Weapon 17 | . . 1 2 1 . 1 . . 2 . 2 5 1 2 Piercing Weapon 4 | . . . 2 . . . . . . . . . 2 . Special Melee Weapon . | . . . . . . . . . . . . . . . Unidentified Prototypes 7 | . . . 1 . . . . . 2 . 2 . 2 . Corrupted Parts 1 | . . . . . . . . . . . . . 1 . System Corruption 4 | . . . . . . . . . . . . . 4 . Parts Lost 80 | . . 4 3 7 . 2 . 4 12 2 . 8 37 1 Power 6 | . . 1 . . . . . 1 2 . . . 2 . Propulsion 45 | . . 3 1 4 . 1 . 2 7 1 . 4 22 . Utility 22 | . . . 2 3 . . . 1 3 1 . 2 10 . Weapon 7 | . . . . . . 1 . . . . . 2 3 1 Highest Loss Streak 9 | . . 2 2 4 . 2 . 2 3 2 . 6 9 1 To Critical Strikes 6 | . . 1 . . . . . . 1 . . . 4 . Average Slot Usage (%) 85 | . 100 87 89 84 83 83 76 83 83 78 80 80 84 30 Engine 8 | . 14 13 8 2 . 6 7 6 5 5 6 6 2 . Treads 5 | . . 17 2 . . . . . . . . 7 1 . Leg 8 | . 28 3 23 . . . . 9 7 . . . 22 . Wheel 10 | . . . 4 28 30 29 23 19 21 25 26 15 3 . Device 8 | . 14 12 5 7 14 5 . . 8 8 6 6 5 . Storage 6 | . 14 4 8 7 7 7 7 7 6 6 6 6 4 . Processor 7 | . . . 2 9 4 15 15 15 13 13 13 13 19 17 Protection 9 | . . 6 16 12 9 8 15 14 10 10 13 13 6 . Energy Cannon 3 | . 9 9 1 . . . . . . . . . . . Ballistic Gun 4 | . 13 11 1 . . . . . . . . . . . Ballistic Cannon 1 | . . 4 . . . . . . . . . . . . Impact Weapon 1 | . . 1 2 2 . . . . . . . . 2 3 Slashing Weapon 4 | . . . 4 4 7 7 7 7 6 6 5 9 6 . Piercing Weapon 1 | . . . 7 2 . . . . . . . . 1 4 Naked Turns . | . . . . . . . . . . . . . . . Heaviest Build 134 | 14 52 62 112 132 118 117 117 117 123 123 124 134 130 11 Greatest Support 111 | 20 20 40 45 60 60 48 38 38 89 58 58 58 111 3 Greatest Overweight (x) 38 | 4 2 2 5 10 2 3 3 4 6 2 2 4 38 3 Average Overweight (x) 1 | . . . . 2 1 2 3 3 2 2 1 2 2 . Largest Inventory Capacity 25 | 8 20 20 25 25 25 25 25 25 25 25 25 25 25 5 Average Capacity 18 | 7 14 10 16 25 25 25 25 25 25 25 25 25 24 5 Most Carried 25 | 5 11 14 25 25 25 25 23 25 25 25 25 25 25 5 Average Carried 15 | 2 8 6 14 24 24 24 23 22 23 24 24 21 17 4 Final Capacity 25 | 8 20 5 25 25 25 25 25 25 25 25 25 25 5 5 Final Carried 25 | 5 11 5 25 24 25 23 23 24 25 25 25 21 5 5 Class Distribution -------------------- 33% | Mutant 24% | Scavenger-Gladiator 23% | Gladiator 9% | Scavenger-Mutant 5% | Derelict-Gladiator 4% | Subdweller-Mutant Dominant Class ---------------- Mutant | -10/Materials Mutant | -10/Subcaves Scavenger-Mutant | -8/Materials Scavenger-Gladiator | -7/Factory Scavenger-Gladiator | -7/Lower Caves Scavenger-Gladiator | -7/Lower Caves Gladiator | -7/Data Miner Gladiator | -6/Proximity Caves Scavenger-Gladiator | -6/Factory Scavenger-Gladiator | -6/Lower Caves Gladiator | -6/Zion Derelict-Gladiator | -5/Proximity Caves Scavenger-Gladiator | -5/Factory Gladiator | -5/Upper Caves Resources | -11 -10 -10 -8 -7 -7 -7 -7 -6 -6 -6 -6 -5 -5 -5 ----------- Run | Yrd Mat Sub Mat Fac Low Low Dat Pro Fac Low Zio Pro Fac Upp Matter Collected 3578 | 203 160 506 485 310 83 92 . 95 637 141 58 256 530 22 Remotely . | . . . . . . . . . . . . . . . Salvage Created 9388 | 27 255 417 1784 1485 336 372 . 444 1252 357 . 786 1873 . Parts 430 | 2 14 22 87 53 11 10 . 9 80 19 . 36 87 . Haulers Intercepted 3 | . . . 3 . . . . . . . . . . . Recyclers Shooed 2 | 1 1 . . . . . . . . . . . . . Parts Field Recycled . | . . . . . . . . . . . . . . . Retrieved Matter . | . . . . . . . . . . . . . . . Parts Self-Destructed 69 | . . . . . . 12 . 7 . 18 1 31 . . Prevented . | . . . . . . . . . . . . . . . Kills | -11 -10 -10 -8 -7 -7 -7 -7 -6 -6 -6 -6 -5 -5 -5 ------- Run | Yrd Mat Sub Mat Fac Low Low Dat Pro Fac Low Zio Pro Fac Upp Combat Hostiles Destroyed 155 | . 8 12 28 18 1 5 . 7 19 7 . 15 35 . Melee 127 | . . 1 28 18 1 5 . 7 19 7 . 9 32 . Guns 8 | . 4 4 . . . . . . . . . . . . Cannons 7 | . 1 6 . . . . . . . . . . . . AOE 11 | . 3 . . . . . . . . . . 6 2 . Classes Destroyed 20 | 1 3 1 8 2 2 . . . 1 1 . 1 . . Worker 13 | . . . 2 . . . . . 7 . . . 4 . Builder 9 | . . . 4 . . . . . 4 . . . 1 . Tunneler 3 | 1 . . . 1 . . . . 1 . . . . . Hauler 3 | . . . 3 . . . . . . . . . . . Recycler 11 | . . . 1 6 . . . . . . . . 4 . Minesweeper 1 | . . . . . . . . . . 1 . . . . Mechanic 3 | . . . 1 1 . . . . . . . . 1 . Operator 3 | . . . 2 . . . . . 1 . . . . . Watcher 5 | . 1 . 2 . . . . . . . . . 2 . Swarmer 35 | . 3 . 4 1 . 2 . . 4 3 . . 18 . Grunt 66 | . 5 . 17 11 . 3 . 7 4 3 . 10 6 . Brawler 3 | . . . . 3 . . . . . . . . . . Duelist 3 | . . . 1 . . . . . 1 1 . . . . Sentry 11 | . . . 6 2 . . . . 3 . . . . . Hunter 11 | . . . . . . . . . 3 . . 3 5 . Programmer 12 | . . . . 1 . . . . 4 . . 1 6 . Behemoth 1 | . . . . . . . . . . . . 1 . . Subdweller 12 | . . 12 . . . . . . . . . . . . Decomposer 3 | . . . . . 3 . . . . . . . . . Samaritan 3 | . . . . . 3 . . . . . . . . . Thug 1 | . . . . . 1 . . . . . . . . . Mutant 1 | . . . . . 1 . . . . . . . . . Best Kill Streak 10 | 1 3 2 6 5 1 2 . 2 7 3 . 5 10 . Combat Bots Only 10 | . 3 2 6 3 1 2 . 2 5 3 . 5 10 . Max Kills in Single Turn 4 | 1 2 1 1 1 1 1 . 1 1 1 . 3 4 . Gunslinging . | . . . . . . . . . . . . . . . Exploded 3 | . 2 . . . . . . . . . . 3 2 . Melee 1 | . . 1 1 1 1 1 . 1 1 1 . 1 1 . Uniques/NPCs Destroyed . | . . . . . . . . . . . . . . . Combat | -11 -10 -10 -8 -7 -7 -7 -7 -6 -6 -6 -6 -5 -5 -5 -------- Run | Yrd Mat Sub Mat Fac Low Low Dat Pro Fac Low Zio Pro Fac Upp Hostile Shots Fired 1311 | . 33 81 98 122 9 21 . 61 262 47 . 171 382 24 Missed 355 | . 7 22 27 40 3 2 . 15 85 6 . 35 103 10 Damage Taken 15808 | . 302 1339 977 1424 110 314 . 894 2206 812 . 2289 4879 262 Core 2096 | . 60 145 133 90 . 14 . 84 138 171 . 260 811 190 Absorbed by Shields 1499 | . . . 223 90 . . . . 356 184 . 545 101 . Redirected to Shielding 49 | . . . 49 . . . . . . . . . . . Ignored by Resistances 49 | . . . . 19 . . . . 30 . . . . . Regen/Repaired (Parts) 890 | . . . . . . . . . 339 55 22 280 194 . Core Remaining (%) 59 | 100 . 18 75 . . . . 73 . . . 33 . . Volleys Fired 108 | 3 19 70 12 . . . . . . . . 2 2 . Largest 2 | 2 2 2 2 . . . . . . . . 1 1 . Hottest 119 | 70 80 119 108 . . . . . . . . 45 45 . Shots Fired 162 | 6 36 100 16 . . . . . . . . 2 2 . Gun 87 | 6 31 44 6 . . . . . . . . . . . Cannon 69 | . 3 56 10 . . . . . . . . . . . Launcher 6 | . 2 . . . . . . . . . . 2 2 . Special . | . . . . . . . . . . . . . . . Kinetic 108 | 3 16 83 6 . . . . . . . . . . . Thermal 48 | 3 18 17 10 . . . . . . . . . . . Explosive 6 | . 2 . . . . . . . . . . 2 2 . Electromagnetic . | . . . . . . . . . . . . . . . Robot Hit Streak 18 | 2 7 18 8 . . . . . . . . 5 6 . Robot Miss Streak 3 | 3 2 2 3 . . . . . . . . 2 3 . Penetration Max . | . . . . . . . . . . . . . . . Secondary Targets 1 | . 1 . . . . . . . . . . . . . Max Gunslinging Chain 1 | . 1 . . . . . . . . . . . . . Shots Hit Robots 518 | 3 22 66 90 68 13 11 . 20 55 18 . 44 108 . Core Hits 255 | 2 15 16 42 27 4 6 . 8 24 8 . 36 67 . Critical Kills 3 | . . . . 3 . . . . . . . . . . Critical Parts Destroyed 4 | . . 1 1 . . . . . . . . . 2 . Critical Strikes 62 | . 1 1 8 14 3 1 . 4 8 4 . 4 14 . Burn 1 | . 1 . . . . . . . . . . . . . Smash 7 | . . 1 1 3 . . . . . . . . 2 . Sever 51 | . . . 6 10 3 1 . 4 8 4 . 4 11 . Impale 3 | . . . 1 1 . . . . . . . . 1 . Melee Attacks 613 | . . 26 131 85 14 16 . 28 87 23 1 49 153 . Impact 91 | . . 24 14 25 . . . . . . . . 28 . Slashing 459 | . . 2 93 57 14 16 . 28 87 23 1 49 89 . Piercing 63 | . . . 24 3 . . . . . . . . 36 . Sneak Attacks 52 | . . . 13 10 7 . . . 13 1 . . 8 . Combat Hostiles . | . . . . . . . . . . . . . . . Follow-up Attacks 36 | . . . 10 2 . . . . . . . 4 20 . Damage Inflicted 24742 | 46 416 1616 3520 3493 1030 708 . 1033 3526 859 . 2676 5819 . Guns 808 | 46 216 442 104 . . . . . . . . . . . Cannons 963 | . 34 804 125 . . . . . . . . . . . Explosions 1937 | . 166 . . . . . . . . . . 792 979 . Melee 21034 | . . 370 3291 3493 1030 708 . 1033 3526 859 . 1884 4840 . Ramming . | . . . . . . . . . . . . . . . Kinetic 1223 | 9 88 1022 104 . . . . . . . . . . . Thermal 548 | 37 162 224 125 . . . . . . . . . . . Explosive 1937 | . 166 . . . . . . . . . . 792 979 . Electromagnetic . | . . . . . . . . . . . . . . . Impact 2516 | . . 370 711 683 . . . . . . . . 752 . Slashing 17287 | . . . 2339 2750 1030 708 . 1033 3526 859 . 1884 3158 . Piercing 1231 | . . . 241 60 . . . . . . . . 930 . Highest Corruption 12 | . . . . 5 5 5 5 5 7 7 7 2 12 12 Average Corruption 4 | . . . . 2 5 5 5 5 4 7 7 1 3 12 Corruption Purged 5 | . . . . 5 . . . . . . . . . . Corruption Blocked . | . . . . . . . . . . . . . . . Effects 159 | . . . . 10 14 13 3 20 36 10 1 20 19 13 Message Errors 32 | . . . . 4 . 3 1 4 5 2 . 4 6 3 Matter Fused 44 | . . . . . 3 3 1 4 9 3 . 9 6 6 Heat Flow Errors 18 | . . . . 3 5 1 . 2 5 . . 1 . 1 Energy Discharges 20 | . . . . 2 1 2 1 2 6 1 . 1 3 1 Parts Rejected 3 | . . . . . . . . 1 1 . . . 1 . Parts Fused 2 | . . . . . . . . 1 . . . . . 1 Data Loss (minor) 22 | . . . . . 2 3 . 5 5 2 1 4 . . Data Loss (major) 10 | . . . . 1 1 1 . . 2 2 . 1 2 . Alerts 7 | . . . . . 2 . . 1 3 . . . 1 . Misdirections 1 | . . . . . . . . . . . . . . 1 Overload Shots . | . . . . . . . . . . . . . . . Overflow Damage 3089 | . 12 67 414 453 379 217 . 52 714 31 . 24 726 . Projectiles . | . . . . . . . . . . . . . . . Explosions 39 | . 12 . . . . . . . . . . . 27 . Melee 3050 | . . 67 414 453 379 217 . 52 714 31 . 24 699 . Knockbacks 20 | . . 12 2 4 . . . . . . . . 2 . Impact 9 | . . 2 2 3 . . . . . . . . 2 . Kinetic 10 | . . 10 . . . . . . . . . . . . Secondary 1 | . . . . 1 . . . . . . . . . . Self-Inflicted Damage 59 | . . . . . . . . . . . . 59 . . Shots 4 | . . . . . . . . . . . . 4 . . Rammed . | . . . . . . . . . . . . . . . Targets Rammed . | . . . . . . . . . . . . . . . Kicked . | . . . . . . . . . . . . . . . Crushed . | . . . . . . . . . . . . . . . Highest Temperature 518 | 40 254 87 199 360 259 187 . 243 243 . . 518 . 62 Average Temperature 114 | 19 85 33 85 155 90 94 . 93 108 . . 154 . 42 Received Heat Transfer 3278 | . 150 198 396 288 . 144 . 349 350 138 . 968 234 63 Effects 7 | . . . . 2 . . . 1 . . . 4 . . Shutdowns 2 | . . . . . . . . . . . . 2 . . Interference 3 | . . . . . . . . 1 . . . 2 . . Matter Decay 1 | . . . . 1 . . . . . . . . . . Short Circuit 1 | . . . . 1 . . . . . . . . . . Siege Activations . | . . . . . . . . . . . . . . . Robots Corrupted . | . . . . . . . . . . . . . . . Combat Hostiles . | . . . . . . . . . . . . . . . Parts Fried 18 | . . 3 13 . . . . . . . . . 2 . Impact Corruptions 33 | . . 4 14 3 . . . . . . . . 12 . Robots Melted . | . . . . . . . . . . . . . . . Combat Hostiles . | . . . . . . . . . . . . . . . Parts Melted 2 | . . . . 1 . . . 1 . . . . . . Heat Transferred 1110 | 111 518 296 185 . . . . . . . . . . . Parts Sabotaged . | . . . . . . . . . . . . . . . Parts Stolen . | . . . . . . . . . . . . . . . Parts Stripped . | . . . . . . . . . . . . . . . Power Chain Reactions . | . . . . . . . . . . . . . . . Alert | -11 -10 -10 -8 -7 -7 -7 -7 -6 -6 -6 -6 -5 -5 -5 ------- Run | Yrd Mat Sub Mat Fac Low Low Dat Pro Fac Low Zio Pro Fac Upp Peak Influence 971 | 5 248 . 350 255 . . . . 971 . . . 777 . Initial 906 | . 3 . . 23 . . . . 906 . . . 213 . Average 227 | 1 73 . 74 132 . . . . 429 . . . 396 . Maximum Alert Level 3 | . 1 . 1 1 . . . . 3 . . . 3 . Low Security (%) 58 | 100 93 . 84 78 . . . . 35 . . . 4 . Level 1 22 | . 6 . 15 21 . . . . 14 . . . 59 . Level 2 11 | . . . . . . . . . 26 . . . 26 . Level 3 7 | . . . . . . . . . 22 . . . 8 . Level 4 . | . . . . . . . . . . . . . . . Level 5 . | . . . . . . . . . . . . . . . High Security . | . . . . . . . . . . . . . . . Max Security . | . . . . . . . . . . . . . . . Squads Dispatched 18 | . . . 3 2 . . . . 6 . . . 7 . Investigation 2 | . . . 1 . . . . . 1 . . . . . Extermination 8 | . . . . 2 . . . . 3 . . . 3 . Reinforcement 7 | . . . 2 . . . . . 2 . . . 3 . Assault 1 | . . . . . . . . . . . . . 1 . Garrison . | . . . . . . . . . . . . . . . Intercept . | . . . . . . . . . . . . . . . Searches Triggered 4 | . . . . . . . . . 4 . . . . . Data Miner Redirects 1 | . . . . . . . . . . . . . 1 . Construction Impeded . | . . . . . . . . . . . . . . . Haulers Reinforced 1 | . . . . . . . . . . . . . 1 . Active Scanning Responses . | . . . . . . . . . . . . . . . Cargo Convoy Interrupts 1 | . . . . . . . . . . . . . 1 . Stealth | -11 -10 -10 -8 -7 -7 -7 -7 -6 -6 -6 -6 -5 -5 -5 --------- Run | Yrd Mat Sub Mat Fac Low Low Dat Pro Fac Low Zio Pro Fac Upp Distress Signals 6 | . 1 . . 3 . . . 1 . . . . 1 . Communications Jammed . | . . . . . . . . . . . . . . . Distress Signals . | . . . . . . . . . . . . . . . Times Spotted 269 | . 22 13 40 30 1 7 . 20 27 7 . 18 65 19 Peak Tracking Total 13 | . 5 2 4 5 1 4 . 5 4 4 . 5 7 13 Tactical Retreats 28 | . 1 3 2 3 . 2 . 2 4 . . . 9 2 Traps | -11 -10 -10 -8 -7 -7 -7 -7 -6 -6 -6 -6 -5 -5 -5 ------- Run | Yrd Mat Sub Mat Fac Low Low Dat Pro Fac Low Zio Pro Fac Upp Traps Triggered 2 | . . . . 1 . . . . . . . . 1 . Indirectly . | . . . . . . . . . . . . . . . Trap Hack Attempts . | . . . . . . . . . . . . . . . Triggered . | . . . . . . . . . . . . . . . Disarmed . | . . . . . . . . . . . . . . . Reprogrammed . | . . . . . . . . . . . . . . . Reused 2 | . . 2 . . . . . . . . . . . . Traps Extracted . | . . . . . . . . . . . . . . . Installed 2 | . . 2 . . . . . . . . . . . . Triggered 2 | . . . . . . . . . . . . . 2 . Most Traps Carried 4 | . . 2 . . . . . . . 4 3 . . . Machines | -11 -10 -10 -8 -7 -7 -7 -7 -6 -6 -6 -6 -5 -5 -5 ---------- Run | Yrd Mat Sub Mat Fac Low Low Dat Pro Fac Low Zio Pro Fac Upp Machines Disabled 1 | . . . . . 1 . . . . . . . . . Max in Single Turn 1 | . . . . . 1 . . . . . . . . . Garrison Access 1 | . . . 1 . . . . . . . . . . . Machines Repaired . | . . . . . . . . . . . . . . . Machines Dismantled . | . . . . . . . . . . . . . . . Machines Sabotaged . | . . . . . . . . . . . . . . . Overloaded Fab Kills . | . . . . . . . . . . . . . . . Hacking | -11 -10 -10 -8 -7 -7 -7 -7 -6 -6 -6 -6 -5 -5 -5 --------- Run | Yrd Mat Sub Mat Fac Low Low Dat Pro Fac Low Zio Pro Fac Upp Machines Accessed 42 | . 6 1 12 4 . . 4 1 7 1 1 . 4 1 Terminals 24 | . 6 . 8 3 . . . 1 4 . . . 2 . Fabricators 2 | . . . . . . . . . 1 . . . 1 . Repair Stations 3 | . . . . . . . . . 2 . . . 1 . Recycling Units 2 | . . . 1 1 . . . . . . . . . . Scanalyzers 2 | . . . 2 . . . . . . . . . . . Garrison Access 1 | . . . 1 . . . . . . . . . . . Total Hacks 119 | . 19 3 28 8 . . 27 1 20 1 3 . 8 1 Successful 75 | . 7 3 16 3 . . 27 1 10 1 3 . 3 1 Failed 43 | . 11 . 12 5 . . . . 10 . . . 5 . Catastrophic 12 | . 3 . 6 1 . . . . 2 . . . . . Database Lockouts 1 | . 1 . . . . . . . . . . . . . Manual 45 | . 13 . 15 6 . . . . 8 . . . 3 . Terminals 62 | . 19 . 20 6 . . . 1 11 . . . 5 . Fabricators 3 | . . . . . . . . . 2 . . . 1 . Repair Stations 9 | . . . . . . . . . 7 . . . 2 . Recycling Units 3 | . . . 1 2 . . . . . . . . . . Scanalyzers 6 | . . . 6 . . . . . . . . . . . Garrison Access 1 | . . . 1 . . . . . . . . . . . Terminal Hacks 53 | . 6 3 8 1 . . 27 1 2 1 3 . . 1 Record 16 | . . 3 . . . . 11 1 . 1 . . . . Part Schematic 12 | . 1 . . . . . 8 . . . 3 . . . Robot Schematic 5 | . . . . . . . 5 . . . . . . . Prototype ID Bank 5 | . 1 . 1 . . . 3 . . . . . . . Open Door 1 | . . . . . . . . . . . . . . 1 Level Access Points 1 | . . . 1 . . . . . . . . . . . Branch Access Points 1 | . . . . 1 . . . . . . . . . . Terminal Index 1 | . . . 1 . . . . . . . . . . . Unreport Threat 5 | . . . 3 . . . . . 2 . . . . . Locate Traps 3 | . 2 . 1 . . . . . . . . . . . Recall Reinforcements 1 | . . . 1 . . . . . . . . . . . Registered Components 1 | . 1 . . . . . . . . . . . . . Zone Layout 1 | . 1 . . . . . . . . . . . . . Fabricator Hacks 2 | . . . . . . . . . 2 . . . . . Load Schematic 1 | . . . . . . . . . 1 . . . . . Build 1 | . . . . . . . . . 1 . . . . . Repair Station Hacks 7 | . . . . . . . . . 5 . . . 2 . Scan Component 5 | . . . . . . . . . 3 . . . 2 . Repair 2 | . . . . . . . . . 2 . . . . . Recycling Unit Hacks 2 | . . . 1 1 . . . . . . . . . . Retrieve Components 2 | . . . 1 1 . . . . . . . . . . Scanalyzer 5 | . . . 5 . . . . . . . . . . . Insert Component 3 | . . . 3 . . . . . . . . . . . Analyze 2 | . . . 2 . . . . . . . . . . . Garrison Access Hacks 1 | . . . 1 . . . . . . . . . . . Seal Access 1 | . . . 1 . . . . . . . . . . . Unauthorized Hacks 5 | . 1 . 1 1 . . . . 1 . . . 1 . Terminals 5 | . 1 . 1 1 . . . . 1 . . . 1 . Botnet 5 | . 1 . 1 1 . . . . 1 . . . 1 . Fabricators . | . . . . . . . . . . . . . . . Repair Stations . | . . . . . . . . . . . . . . . Recycling Units . | . . . . . . . . . . . . . . . Scanalyzers . | . . . . . . . . . . . . . . . Garrison Access . | . . . . . . . . . . . . . . . Data Cores Recovered 1 | . . . 1 . . . . . . . . . . . Used . | . . . . . . . . . . . . . . . Hacking Detections 26 | . 4 . 8 3 . . . . 7 . . . 4 . Full Trace Events 2 | . . . 1 . . . . . 1 . . . . . Feedback Events . | . . . . . . . . . . . . . . . Feedback Blocked . | . . . . . . . . . . . . . . . Robot Schematics Acquired 7 | . . . . . . . 5 . . . 2 . . . Robots Built . | . . . . . . . . . . . . . . . Authchips . | . . . . . . . . . . . . . . . Time . | . . . . . . . . . . . . . . . Total Robot Build Rating . | . . . . . . . . . . . . . . . Part Schematics Acquired 28 | . 1 . 2 . . . 8 . . . 17 . . . Parts Built 1 | . . . . . . . . . 1 . . . . . Authchips . | . . . . . . . . . . . . . . . Time 152 | . . . . . . . . . 152 . . . . . Total Part Build Rating 5 | . . . . . . . . . 5 . . . . . Parts Repaired 2 | . . . . . . . . . 2 . . . . . Time 88 | . . . . . . . . . 88 . . . . . Parts Recycled . | . . . . . . . . . . . . . . . Recycled Matter . | . . . . . . . . . . . . . . . Retrieved Matter . | . . . . . . . . . . . . . . . Retrieved Components 19 | . . . 9 10 . . . . . . . . . . Parts Scanalyzed 3 | . . . 3 . . . . . . . . . . . Part Schematics Acquired 2 | . . . 2 . . . . . . . . . . . Parts Damaged . | . . . . . . . . . . . . . . . Bothacking | -11 -10 -10 -8 -7 -7 -7 -7 -6 -6 -6 -6 -5 -5 -5 ------------ Run | Yrd Mat Sub Mat Fac Low Low Dat Pro Fac Low Zio Pro Fac Upp Used RIF Installer . | . . . . . . . . . . . . . . . Robots Hacked . | . . . . . . . . . . . . . . . Non-combat . | . . . . . . . . . . . . . . . Combat . | . . . . . . . . . . . . . . . Robot Hacks Applied . | . . . . . . . . . . . . . . . Relay Couplers Released . | . . . . . . . . . . . . . . . Fabnet Peak Effective % . | . . . . . . . . . . . . . . . Robots Rewired 3 | . . . . . 3 . . . . . . . . . Allies Hacked . | . . . . . . . . . . . . . . . Hacks Repelled . | . . . . . . . . . . . . . . . Allies | -11 -10 -10 -8 -7 -7 -7 -7 -6 -6 -6 -6 -5 -5 -5 -------- Run | Yrd Mat Sub Mat Fac Low Low Dat Pro Fac Low Zio Pro Fac Upp Total Allies 6 | . . . . . 3 . . . . . 3 . . . Largest Group 3 | . . . . . 3 3 . . . . 3 3 . . Highest-Rated Group 93 | . . . . . 93 93 . . . . 84 84 . . Highest-Rated Ally 31 | . . . . . 31 31 . . . . 31 31 . . Total Orders 5 | . . . . . . . . . . . . . 5 . FOLLOW 1 | . . . . . . . . . . . . . 1 . RETURN 4 | . . . . . . . . . . . . . 4 . Ally Attacks 35 | . . . . . . 21 . . . . . 14 . . Total Damage 463 | . . . . . . 272 . . . . . 191 . . Kills 6 | . . . . . . 3 . . . . . 3 . . Allies Corrupted . | . . . . . . . . . . . . . . . Allies Melted 1 | . . . . . . . . . . . . . 1 . Intel | -11 -10 -10 -8 -7 -7 -7 -7 -6 -6 -6 -6 -5 -5 -5 ------- Run | Yrd Mat Sub Mat Fac Low Low Dat Pro Fac Low Zio Pro Fac Upp Robot Analysis Total . | . . . . . . . . . . . . . . . Derelict Logs Recovered 6 | . . 1 . . . 1 . 1 . 1 . 1 . 1 Drone Launches 4 | . . . . . . . . . . . . . 4 . Drone Recoveries 4 | . . . . . . . . . . . . . 4 . Exploration | -11 -10 -10 -8 -7 -7 -7 -7 -6 -6 -6 -6 -5 -5 -5 ------------- Run | Yrd Mat Sub Mat Fac Low Low Dat Pro Fac Low Zio Pro Fac Upp Turns Passed 19604 | 79 1114 5438 2735 1052 570 585 118 871 2199 418 1202 1272 1587 364 Spaces Moved 10310 | 44 542 2087 1482 575 432 428 88 515 1182 266 1004 627 668 370 Core 382 | 9 . . . . . . . . . . . . 3 370 Treads 2089 | . . 1878 211 . . . . . . . . . . . Legs 2052 | 35 542 209 968 . . . . . 37 . . . 261 . Wheels 5787 | . . . 303 575 432 428 88 515 1145 266 1004 627 404 . Hover . | . . . . . . . . . . . . . . . Flight . | . . . . . . . . . . . . . . . Fastest Speed 50 | 50 120 160 112 112 112 117 135 135 105 115 100 115 120 50 Average Speed 145 | 123 181 199 143 115 113 118 135 141 125 115 114 133 155 96 Slowest Speed 1950 | 250 260 320 320 240 122 135 135 155 190 116 115 160 1950 200 Overloaded Moves . | . . . . . . . . . . . . . . . Propulsion Burnouts . | . . . . . . . . . . . . . . . Robots Hopped . | . . . . . . . . . . . . . . . Cave-ins Triggered . | . . . . . . . . . . . . . . . Exploration Rate (%) 51 | 4 85 73 70 15 53 58 72 60 25 36 85 66 15 56 Regions Visited 14 Branch Regions 9 Pre-discovered Areas 4 | . . 1 . . . . 1 . . . 1 . . 1 Known Exits Taken 11 | . . . 1 1 1 1 1 1 1 1 1 1 1 . Unknown Exits Taken 3 | 1 1 1 . . . . . . . . . . . . Scrap Searched 15 | . . 4 . . 1 2 . 1 . 1 4 1 . 1 Spaces Dug 51 | . . 11 6 7 . . . 1 11 . . . 15 . Terrain Destroyed 177 | . 14 12 10 7 . . . 1 11 . . 67 55 . Melee 40 | . . . 6 7 . . . 1 11 . . . 15 . Projectile 16 | . . 12 4 . . . . . . . . . . . AOE 121 | . 14 . . . . . . . . . . 67 40 . Terrain Rammed . | . . . . . . . . . . . . . . . Walls Destroyed . | . . . . . . . . . . . . . . . Machines Disabled . | . . . . . . . . . . . . . . . Actions | -11 -10 -10 -8 -7 -7 -7 -7 -6 -6 -6 -6 -5 -5 -5 --------- Run | Yrd Mat Sub Mat Fac Low Low Dat Pro Fac Low Zio Pro Fac Upp Total 13846 | 59 640 3233 1968 799 482 476 87 601 1725 330 1055 983 1031 377 Wait 2223 | 1 55 984 238 86 1 11 . 47 323 18 25 286 148 . Move 10296 | 43 541 2086 1481 574 431 427 87 514 1181 265 1003 626 667 370 Hop . | . . . . . . . . . . . . . . . Pick Up 173 | 5 8 14 42 12 2 6 . 6 39 7 7 5 19 1 Fast Attach 69 | 7 1 5 18 6 2 . . 1 11 3 3 3 7 2 Attach 84 | . . 5 6 7 1 1 . 5 18 3 1 7 30 . Detach 12 | . . 1 2 1 . . . . 2 1 2 . 3 . Swap 132 | . 8 11 19 16 3 6 . . 34 5 1 9 20 . Drop 167 | . 8 25 43 15 3 9 . . 30 5 12 1 12 4 Fire 108 | 3 19 70 12 . . . . . . . . 2 2 . Melee 551 | . . 26 107 82 14 16 . 28 87 23 1 44 123 . Ram . | . . . . . . . . . . . . . . . Kick . | . . . . . . . . . . . . . . . Crush . | . . . . . . . . . . . . . . . Escape Stasis . | . . . . . . . . . . . . . . . Rewire 25 | . . . . . 25 . . . . . . . . . Trap 2 | . . 2 . . . . . . . . . . . . Miscellaneous 4 | . . 4 . . . . . . . . . . . . Route ------- -11/Scrapyard -10/Materials (discovered 6 exits: [*Mat x3] / [*Min x2] / *Sub) -10/Subcaves (discovered 2 exits: *Mat x2) -8/Materials (discovered 4 exits: *Fac x3 / *Sto) -7/Factory (discovered 2 exits: *Low x2) -7/Lower Caves -7/Lower Caves (discovered 2 exits: *Fac / *Dat) -7/Data Miner -6/Proximity Caves -6/Factory (discovered 2 exits: Fac / *Low) -6/Lower Caves -6/Zion (discovered 2 exits: [Dee] / *Pro) -5/Proximity Caves -5/Factory (discovered 8 exits: *Fac x4 / *Upp x2 / Ext x2) -5/Upper Caves (discovered 1 exit: [*Upp]) History --------- Turn | Location | Event 13 | -11/Scrapyard | Discovered new exit (range 15) 80 | -11/Scrapyard | Entered Materials 239 | -10/Materials | Discovered new exit (range 13) 309 | -10/Materials | Build established: Mutant 358 | -10/Materials | Discovered new exit (range 8) 434 | -10/Materials | Discovered new exit (range 11) 514 | -10/Materials | Central database locked down 551 | -10/Materials | Discovered new exit (range 9) 1037 | -10/Materials | Discovered new exit (range 16) 1170 | -10/Materials | Discovered new exit (range 9) 1194 | -10/Materials | Entered Subcaves 1480 | -10/Subcaves | Discovered new exit (range 7) 2004 | -10/Subcaves | Shifting Twisted Machinery released Battle Rifle 2009 | -10/Subcaves | Shifting Twisted Machinery released Battle Cannon 2013 | -10/Subcaves | Shifting Twisted Machinery released Shrapnel Trap 2197 | -10/Subcaves | Learned location of 1 exit from Materials 2526 | -10/Subcaves | Core integrity fell below 50% 2896 | -10/Subcaves | Visited Clippyterm 2904 | -10/Subcaves | Learned location of Deep Caves (-6) 2990 | -10/Subcaves | Discovered new exit (range 11) 3577 | -10/Subcaves | Shifting Twisted Machinery released Battle Rifle 3963 | -10/Subcaves | Core integrity fell below 20% 4264 | -10/Subcaves | Build established: Subdweller-Mutant 5091 | -10/Subcaves | Build established: Mutant 6632 | -10/Subcaves | Entered Materials 6632 | -8/Materials | Evolved 4 slots: Propulsion x2, Utility x2 6633 | -8/Materials | Identified exit to Storage 6688 | -8/Materials | Identified exit to Factory 7549 | -8/Materials | Build established: Scavenger-Mutant 8896 | -8/Materials | Build established: Gladiator 9367 | -8/Materials | Entered Factory 9367 | -7/Factory | Evolved 2 slots: Utility x2 9708 | -7/Factory | Build established: Scavenger-Gladiator 10036 | -7/Factory | Identified exit to Lower Caves 10285 | -7/Factory | Lost 4 parts (3n1u) 10419 | -7/Factory | Entered Lower Caves 10531 | -7/Lower Caves | Attacked by a delusional Derelict stockpiling Unaware 10630 | -7/Lower Caves | Encountered a Warlord checkpoint 10940 | -7/Lower Caves | Discovered new exit (range 16) 10989 | -7/Lower Caves | Identified exit to Lower Caves 10989 | -7/Lower Caves | Entered another Lower Caves area 10989 | -7/Lower Caves | Accompanied by 3 allies 11021 | -7/Lower Caves | Discovered new exit (range 5) 11043 | -7/Lower Caves | Identified exit to Factory 11077 | -7/Lower Caves | Encountered a Warlord checkpoint 11128 | -7/Lower Caves | Learned location of 1 exit from Factory 11546 | -7/Lower Caves | Discovered new exit (range 15) 11572 | -7/Lower Caves | Identified exit to Data Miner 11574 | -7/Lower Caves | Entered Data Miner 11574 | -7/Data Miner | Discovered new exit (range 6) 11600 | -7/Data Miner | Met Data Miner 11634 | -7/Data Miner | Learned location of Section 7 (-3) 11634 | -7/Data Miner | Acquired the access code to Warlord's prototype stash 11657 | -7/Data Miner | Received God Mode back door access code from Data Miner 11691 | -7/Data Miner | Identified exit to Proximity Caves 11692 | -7/Data Miner | Entered Proximity Caves 11694 | -6/Proximity Caves | Spotter reported a threat 11695 | -6/Proximity Caves | Spotter reported a threat 11748 | -6/Proximity Caves | Spotter reported a threat 11789 | -6/Proximity Caves | Build established: Gladiator 11814 | -6/Proximity Caves | Spotter reported a threat 11868 | -6/Proximity Caves | Spotted B-75 Beast 11975 | -6/Proximity Caves | Spotter reported a threat 12095 | -6/Proximity Caves | Spotter reported a threat 12108 | -6/Proximity Caves | Spotter reported a threat 12211 | -6/Proximity Caves | Spotter reported a threat 12293 | -6/Proximity Caves | Spotter reported a threat 12346 | -6/Proximity Caves | Spotter reported a threat 12359 | -6/Proximity Caves | Spotter reported a threat 12506 | -6/Proximity Caves | Spotter reported a threat 12563 | -6/Proximity Caves | Entered Factory 12563 | -6/Factory | Evolved 2 slots: Propulsion x1, Utility x1 12564 | -6/Factory | Identified exit to Factory 12826 | -6/Factory | Lost 3 parts (1p1n1u) 12913 | -6/Factory | Search patrols dispatched 13263 | -6/Factory | Search patrols dispatched 13529 | -6/Factory | Build established: Scavenger-Gladiator 13561 | -6/Factory | Repaired Greatsword 13609 | -6/Factory | Repaired Arm. Huge Wheel 13613 | -6/Factory | Search patrols dispatched 13963 | -6/Factory | Search patrols dispatched 14169 | -6/Factory | Fabricated Lgt. Regenerative Plating (x1) 14509 | -6/Factory | Discovered new exit (range 8) 14570 | -6/Factory | Identified exit to Lower Caves 14652 | -6/Factory | Build established: Gladiator 14762 | -6/Factory | Entered Lower Caves 14768 | -6/Lower Caves | Learned Factory interactive machine intel 15176 | -6/Lower Caves | A Derelict revealed a hidden shortcut to a safe place 15178 | -6/Lower Caves | Identified exit to Zion 15180 | -6/Lower Caves | Entered Zion 15240 | -6/Zion | System corruption cleaned by Quarantine Array 15309 | -6/Zion | Discovered new exit (range 10) 15342 | -6/Zion | Build established: Scavenger-Gladiator 15388 | -6/Zion | Found Prototype Launcher 15388 | -6/Zion | Identified Gui. Missile Launcher 15391 | -6/Zion | Found Prototype Launcher 15391 | -6/Zion | Identified Rocket Array 15516 | -6/Zion | Learned location of Warlord (-5) 15635 | -6/Zion | Gained Derelict followers 15688 | -6/Zion | Build established: Gladiator 15860 | -6/Zion | Given the Hacking Drone Bay 15861 | -6/Zion | Found Prototype Device 15950 | -6/Zion | Given A8's code to call for help 16019 | -6/Zion | Discovered new exit (range 15) 16328 | -6/Zion | Identified exit to Proximity Caves 16382 | -6/Zion | Entered Proximity Caves 16382 | -5/Proximity Caves | Accompanied by 3 allies 16384 | -5/Proximity Caves | Spotter reported a threat 16484 | -5/Proximity Caves | P-70 Sage assimilated allied EO-MH3(l) 16531 | -5/Proximity Caves | Learned 12 Factory zone layouts 16757 | -5/Proximity Caves | Spotted B-75 Beast 16834 | -5/Proximity Caves | Core integrity fell below 50% 16866 | -5/Proximity Caves | Destroyed B-75 Beast 16876 | -5/Proximity Caves | Lost 6 parts (2n2u2w) 17261 | -5/Proximity Caves | Build established: Derelict-Gladiator 17613 | -5/Proximity Caves | Discovered exit to Factory (range 6) 17654 | -5/Proximity Caves | Entered Factory 17654 | -5/Factory | Evolved 2 slots: Propulsion x1, Utility x1 17655 | -5/Factory | Identified exit to Upper Caves 17656 | -5/Factory | Loaded intel: 54 interactive machine locations 18231 | -5/Factory | Build established: Scavenger-Gladiator 18250 | -5/Factory | Cargo convoy interrupted 18314 | -5/Factory | Identified Hacking Drone Bay 18443 | -5/Factory | Lost 4 parts (2n1u1w) 18593 | -5/Factory | Identified exit to Factory 18595 | -5/Factory | Identified exit to Extension 18735 | -5/Factory | Destroyed 10 combat bots 18759 | -5/Factory | Lost 9 parts (4n5u) 18902 | -5/Factory | Lost 4 parts (1p1n1u1w) 19070 | -5/Factory | Lost 4 parts (4n) 19077 | -5/Factory | Spotted B-75 Beast 19154 | -5/Factory | First assault squad dispatched 19156 | -5/Factory | Lost 5 parts (4n1u) 19182 | -5/Factory | Incoming assault squad redirected 19192 | -5/Factory | Core integrity fell below 50% 19193 | -5/Factory | System corruption reached 10% 19222 | -5/Factory | Lost 3 parts (1p2n) 19239 | -5/Factory | Core integrity fell below 20% 19241 | -5/Factory | Entered Upper Caves 19502 | -5/Upper Caves | Learned location of Armory (-4) 19573 | -5/Upper Caves | Attracted the attention of an 0b10 outpost 19604 | -5/Upper Caves | Discovered new exit (range 9) 19605 | -5/Upper Caves | Destroyed by S-27 Virus with Autogun Last Messages --------------- 19543_ Dropped Hvy. Pick. 19544_ Acquired Mak. Sword. 19547_ Acquired Mak. Transmission Jammer. 19550_ System corrupted: Mak. Sword fused. 19572_ Penetrated by Slug. 19572_ B-60 Warrior springs to life. 19573_ Y-72 Warden: "DETECTED UNIDENTIFIED DERELICT." 19577_ Y-72 Warden: "REQUESTING BACKUP." 19582_ System corrupted: Heat flow error (+102). 19586_ Penetrated by Slug. 19586_ Mak. Sword destroyed. 19600_ Searching scrap... 19600_ Found Unknown Special Weapon. 19600_ Found Mak. Sword. 19600_ Found Hvy. Battle Rifle. 19600_ Found 22 Matter. 19601_ Acquired 22 matter. 19601_ Acquired Mak. Sword. 19604_ EXIT=FOUND Map ----- +----------------------------------------------------+ | ?????????????????????????????? #??????? ?????? | | ??????????????????????????????# #????? #?????? | | ??????????????????????????????# ????? #?????? | | ??????????????????????????????# ?#??? #?????? | | ??????????????????????????????# # ### #?????? | | ?????????????????????????????## # ## ??????? | | ?????????????????????????????? # ???????? | | ???????????????????????????????# # ##??????? | | ????????????????????????????????# ##?????? | | ???????????????????????????????## # # ##????? | | ?????????????????????????????### # ##???? | | ?????????????????????????????# # ###?? | | ?????????????????????????????# #?? | | ????????## ??????????????????#### # # ##?? | | ???????? ????????????????????#### # #???? | | ???????? ????????????????????## ##??? | | ??????? ??????????????##### # # ###? | | ??????? ?????????????# ## | | ??????? ????????????# # # ## | | ??????? ###?????????## #### # | | ??????? ????????# ###??## | | ??????????# ???????## # #????#### | | ??????????????# ?####??### ###?????## # | | ??????????????????# ## ###### #??????# # | | ???????????????????# [ | s # ##?????#### | | ???????????????????## @ s #????????? | | ????????????????????## ##### ## #?????? | | ?????????????????????## ??# #? # # # #????? | | ??????????????????????# #?# ? # #???? | | ?????????????????????# ##? ## ? #??? | | ????????????????????# ##?? # #######??#? ?? | | ???????????????????# < #??##?##??????????? ? | | ???????????????????## ##??????????????????? | | ????????????????????#######?????????????????????## | | ?????????????????????????????????????????????????# | | ?????????????????????????????????????????????????? | | ?????????????????????????????????????????????????? | | ?????????????????????????????????????????????????? | | ?????????????????????????????????????????????????? | | ?????????????????????????????????????????????????? | | ?????????????????????????????????????????????????? | | ?????????????????????????????????????????????????? | | ?????????????????????????????????????????????????? | | ?????????????????????????????????????????????????? | | ?????????????????????????????????????????????????? | | ?????????????????????????????????????????????????? | | ?????????????????????????????????????????????????? | | ?????????????????????????????????????????????????? | | ?????????????????????????????????????????????????? | | ?????????????????????????????????????????????????? | +----------------------------------------------------+ Best States ------------- Heat Dissipation 40 Energy Generation 21 Energy Capacity 350 Matter Stores 300 Matter Capacity 300 Sight Range 22 Terrain Scan Range 20 Terrain Scan Density 10 Armor Coverage 1050 Resistance: TH 10 Resistance: EM 15 Core Shielding 20 Utility Shielding 33 Melee Speed Boost 20 Evasion (%) 55 Melee Accuracy 14 Recoil Reduction 2 Item Schematics ----------------- Huge Storage Unit | -10/Materials | Hacked Mak. Sword | -8/Materials | Scanalyzed Machine Analyzer | -8/Materials | Scanalyzed Combat Drone Bay | -7/Data Miner | Free Lgt. Regenerative Plating | -7/Data Miner | Free Cld. Aerolev Unit | -7/Data Miner | Free Gravity Neutralizer | -7/Data Miner | Free Imp. Lightning Gun | -7/Data Miner | Free Field Propulsion Drive | -7/Data Miner | Free Adv. Drone Bay | -7/Data Miner | Free Smartbomb Launcher | -7/Data Miner | Free Beamcaster | -6/Zion | Free Battle Cannon | -6/Zion | Free Flamer | -6/Zion | Free Hvy. Machine Gun | -6/Zion | Archive Imp. Weapon Cycler | -6/Zion | Archive Imp. Coolant Injector | -6/Zion | Archive 0b10 Decoder Chip [Looter] | -6/Zion | Archive Hvy. Beamcaster | -6/Zion | Archive Enh. Optical Array | -6/Zion | Archive Enh. Gauss Cannon | -6/Zion | Archive Adv. Reaction Control System | -6/Zion | Archive Centrium Wheel | -6/Zion | Archive Imp. Thermal Generator | -6/Zion | Archive Imp. Component Analysis Suite | -6/Zion | Archive Mass Driver | -6/Zion | Archive Hvy. Plasma Cannon | -6/Zion | Archive Imp. KE Penetrator | -6/Zion | Archive Robot Schematics ------------------ A-15 Conveyor | -7/Data Miner | Free H-55 Commando | -7/Data Miner | Free S-27 Virus | -7/Data Miner | Free R-10 Processor | -7/Data Miner | Free B-60 Warrior | -7/Data Miner | Free Y-54 Guardian | -6/Zion | Archive R-06 Scavenger | -6/Zion | Archive Fabricated ------------ Lgt. Regenerative Plating | x1 | -6/Factory Alien Tech Used ----------------- None Achievements -------------- None Challenges ------------ None Game ------ Seed CorePoweredCoupler Manual? 0 Play Time 02:48:27 Cumulative 88.3 hours Start 2024.04.12 @ 12:24:32 End 2024.04.12 @ 16:05:55 Sessions 3 Manual Loads 0 Difficulty Rogue Special Mode None Game No. 76 Rogue 76 Adventurer 0 Explorer 0 Win Type - Total 2 Types 1/0/1/0/0/0/0/0/0 Lore% 43 Gallery% 57 Achievement% 48 Wizard Run 0 Options --------- Layout 2 ASCII 0 Keyboard 0 Movement Mouse Keybinds 0 Fullscreen 2 Font 32/SmallcapsGlow Map View 50x44 Zoom Use 0% Tactical HUD 1 Map Filters NONE Filters NONE Steam 1 RUN: 4eb307d5-e976-4551-9a1f-27bbf1023f41